[Event "GrandPrix_29.05"]
[Site "Chess.com"]
[Date "2020.05.29"]
[Round "5"]
[White "v-kazakouski"]
[Black "Murad_Ibrahimli"]
[Result "0-1"]
[WhiteElo "2393"]
[BlackElo "2630"]
[TimeControl "600+2"]
[EndTime "11:29:57 PDT"]
[Termination "Murad_Ibrahimli won by resignation"]

1. d4 {[%clk 0:10:00.7]} 1... Nf6 {[%clk 0:09:58.5]} 2. Nf3 {[%clk 0:10:01.2]}
2... d5 {[%clk 0:09:57.2]} 3. c4 {[%clk 0:10:01.5]} 3... c6 {[%clk 0:09:57.1]}
4. Qc2 {[%clk 0:10:01.9]} 4... g6 {[%clk 0:09:56.7]} 5. Bf4 {[%clk 0:10:02]}
5... Bg7 {[%clk 0:09:56.7]} 6. e3 {[%clk 0:10:02.4]} 6... O-O {[%clk 0:09:56]}
7. Nc3 {[%clk 0:10:02.7]} 7... Bg4 {[%clk 0:09:44.4]} 8. Ne5 {[%clk 0:09:48.2]}
8... Bf5 {[%clk 0:09:39.9]} 9. Qb3 {[%clk 0:09:48.4]} 9... Qb6 {[%clk 0:09:36]}
10. h3 {[%clk 0:09:43.7]} 10... Na6 {[%clk 0:09:16.7]} 11. g4 {[%clk 0:07:47.9]}
11... Be6 {[%clk 0:09:07.9]} 12. c5 {[%clk 0:07:30.3]} 12... Qxb3 {[%clk
0:09:06.4]} 13. axb3 {[%clk 0:07:29.7]} 13... Nb4 {[%clk 0:09:07.7]} 14. Ra4
{[%clk 0:07:24.4]} 14... a5 {[%clk 0:09:05.6]} 15. f3 {[%clk 0:07:06.2]} 15...
Nd7 {[%clk 0:09:00.2]} 16. Nxd7 {[%clk 0:06:38.4]} 16... Bxd7 {[%clk 0:08:59.1]}
17. Bc7 {[%clk 0:06:34.4]} 17... e5 {[%clk 0:07:32.9]} 18. dxe5 {[%clk
0:05:15.4]} 18... Rfe8 {[%clk 0:07:30.2]} 19. f4 {[%clk 0:05:14.7]} 19... f6
{[%clk 0:07:20.2]} 20. Bxa5 {[%clk 0:04:39.6]} 20... Na6 {[%clk 0:07:03.9]} 21.
Bxa6 {[%clk 0:04:25.2]} 21... Rxa6 {[%clk 0:07:01.8]} 22. exf6 {[%clk
0:03:49.8]} 22... Bxf6 {[%clk 0:07:00.3]} 23. Kd2 {[%clk 0:03:49.3]} 23... h5
{[%clk 0:06:51.7]} 24. g5 {[%clk 0:03:31.2]} 24... Bg7 {[%clk 0:06:50.7]} 25. h4
{[%clk 0:03:15.1]} 25... Be6 {[%clk 0:05:33.3]} 26. Bc7 {[%clk 0:02:43.3]} 26...
Rxa4 {[%clk 0:05:28.2]} 27. bxa4 {[%clk 0:02:37.5]} 27... d4 {[%clk 0:05:28]}
28. exd4 {[%clk 0:02:36]} 28... Bxd4 {[%clk 0:05:26]} 29. b4 {[%clk 0:01:32.4]}
29... Bf5 {[%clk 0:04:04.1]} 30. Be5 {[%clk 0:01:19.3]} 30... Rd8 {[%clk
0:03:30.4]} 31. Bd6 {[%clk 0:01:12.1]} 31... Re8 {[%clk 0:03:26.4]} 32. b5
{[%clk 0:00:55]} 32... Re3 {[%clk 0:03:23.3]} 33. Ne2 {[%clk 0:00:43.9]} 33...
Rd3+ {[%clk 0:03:21.9]} 34. Ke1 {[%clk 0:00:39.3]} 34... Be3 {[%clk 0:02:49.9]}
35. Ng3 {[%clk 0:00:24.9]} 35... Bg4 {[%clk 0:02:40.6]} 36. Ne2 {[%clk
0:00:15.1]} 36... Rd2 {[%clk 0:02:26.1]} 37. Rh2 {[%clk 0:00:15.1]} 37... Rb2
{[%clk 0:02:25.5]} 38. Kf1 {[%clk 0:00:11.5]} 38... Rb1+ {[%clk 0:02:22.7]} 39.
Kg2 {[%clk 0:00:12.7]} 39... Bxe2 {[%clk 0:02:23.2]} 40. Rh3 {[%clk 0:00:14.1]}
40... Bf1+ {[%clk 0:02:21.8]} 0-1

[Event "GrandPrix_29.05"]
[Site "Chess.com"]
[Date "2020.05.29"]
[Round "5"]
[White "GrishaTheChamp"]
[Black "GMMarcinDziuba"]
[Result "0-1"]
[WhiteElo "2194"]
[BlackElo "2467"]
[TimeControl "600+2"]
[EndTime "11:29:57 PDT"]
[Termination "GMMarcinDziuba won by resignation"]

1. d4 {[%clk 0:10:00.1]} 1... Nf6 {[%clk 0:09:59.8]} 2. c4 {[%clk 0:09:59.5]}
2... g6 {[%clk 0:09:58.4]} 3. Nc3 {[%clk 0:10:00.2]} 3... Bg7 {[%clk 0:09:59.6]}
4. e4 {[%clk 0:10:01.2]} 4... O-O {[%clk 0:10:00.5]} 5. Nf3 {[%clk 0:10:02.6]}
5... d6 {[%clk 0:10:01.6]} 6. Be2 {[%clk 0:10:03.9]} 6... e5 {[%clk 0:09:56.2]}
7. O-O {[%clk 0:10:04.2]} 7... Nc6 {[%clk 0:09:57.2]} 8. d5 {[%clk 0:10:03.9]}
8... Ne7 {[%clk 0:09:58.2]} 9. Ne1 {[%clk 0:10:05.5]} 9... Nd7 {[%clk
0:09:57.9]} 10. Be3 {[%clk 0:10:06.7]} 10... f5 {[%clk 0:09:58.6]} 11. f3 {[%clk
0:10:08.3]} 11... f4 {[%clk 0:09:59.9]} 12. Bf2 {[%clk 0:10:09.9]} 12... g5
{[%clk 0:10:01.3]} 13. Nd3 {[%clk 0:10:09.7]} 13... Rf6 {[%clk 0:09:44]} 14. g4
{[%clk 0:10:09.8]} 14... fxg3 {[%clk 0:09:38.9]} 15. hxg3 {[%clk 0:10:09.7]}
15... h5 {[%clk 0:09:37.3]} 16. Kg2 {[%clk 0:10:08.8]} 16... Ng6 {[%clk
0:09:34.8]} 17. Be3 {[%clk 0:10:03.8]} 17... h4 {[%clk 0:09:04.8]} 18. g4 {[%clk
0:09:45.7]} 18... Nf4+ {[%clk 0:09:02]} 19. Kh2 {[%clk 0:09:45.8]} 19... Nf8
{[%clk 0:08:51.7]} 20. c5 {[%clk 0:09:42.9]} 20... N8g6 {[%clk 0:08:50.9]} 21.
cxd6 {[%clk 0:09:37.8]} 21... cxd6 {[%clk 0:08:52.8]} 22. Nb5 {[%clk 0:09:39.3]}
22... a6 {[%clk 0:08:51.4]} 23. Nc3 {[%clk 0:09:39]} 23... Bd7 {[%clk
0:08:43.3]} 24. a4 {[%clk 0:09:36.9]} 24... Rf8 {[%clk 0:08:30.9]} 25. a5 {[%clk
0:09:35]} 25... Bf6 {[%clk 0:08:31]} 26. Na4 {[%clk 0:09:34.1]} 26... Bxa4
{[%clk 0:07:07.1]} 27. Rxa4 {[%clk 0:09:33.3]} 27... Rc8 {[%clk 0:07:08.2]} 28.
Bb6 {[%clk 0:09:08.6]} 28... Qd7 {[%clk 0:07:08]} 29. Ra1 {[%clk 0:09:10]} 29...
Bd8 {[%clk 0:06:50.6]} 30. Be3 {[%clk 0:09:02.1]} 30... Rb8 {[%clk 0:06:34.4]}
31. Ba7 {[%clk 0:08:02.2]} 31... Ra8 {[%clk 0:06:23.9]} 32. Be3 {[%clk
0:08:01.6]} 32... b6 {[%clk 0:06:24.8]} 33. axb6 {[%clk 0:08:00.7]} 33... Qb7
{[%clk 0:06:25.8]} 34. Ra3 {[%clk 0:07:40.3]} 34... a5 {[%clk 0:06:17]} 35. Rb3
{[%clk 0:07:37.7]} 35... Nxe2 {[%clk 0:05:41.1]} 36. Qxe2 {[%clk 0:07:36.3]}
36... Ra6 {[%clk 0:05:42.2]} 37. Qd2 {[%clk 0:07:20.1]} 37... Bxb6 {[%clk
0:05:28.6]} 38. Bxg5 {[%clk 0:07:16.6]} 38... Bg1+ {[%clk 0:05:29]} 39. Kxg1
{[%clk 0:06:59.5]} 39... Qxb3 {[%clk 0:05:30.9]} 40. Nc1 {[%clk 0:05:34.8]}
40... Qb6+ {[%clk 0:05:25]} 41. Be3 {[%clk 0:05:34]} 41... Qb5 {[%clk
0:05:07.2]} 42. Nd3 {[%clk 0:05:23.7]} 42... Raa8 {[%clk 0:05:00.5]} 43. f4
{[%clk 0:04:11.9]} 43... exf4 {[%clk 0:04:45.5]} 44. Bxf4 {[%clk 0:04:04.8]}
44... Ra7 {[%clk 0:04:26.4]} 45. Rc1 {[%clk 0:03:17.5]} 45... Nxf4 {[%clk
0:04:08.8]} 46. Nxf4 {[%clk 0:03:16]} 46... Raf7 {[%clk 0:04:09.6]} 47. Rf1
{[%clk 0:03:16.7]} 47... Qb4 {[%clk 0:03:01.6]} 48. Qe3 {[%clk 0:00:19.2]} 48...
Qc5 {[%clk 0:02:50.9]} 0-1

[Event "GrandPrix_29.05"]
[Site "Chess.com"]
[Date "2020.05.29"]
[Round "5"]
[White "Lavrov_Maxim"]
[Black "tsaruk_maks"]
[Result "0-1"]
[WhiteElo "2267"]
[BlackElo "2269"]
[TimeControl "600+2"]
[EndTime "11:30:01 PDT"]
[Termination "tsaruk_maks won by resignation"]

1. e4 {[%clk 0:10:01.9]} 1... e6 {[%clk 0:10:00.1]} 2. d4 {[%clk 0:09:58.1]}
2... d5 {[%clk 0:10:01.5]} 3. e5 {[%clk 0:09:57.3]} 3... c5 {[%clk 0:10:02.2]}
4. c3 {[%clk 0:09:57.2]} 4... Nc6 {[%clk 0:09:58]} 5. Nf3 {[%clk 0:09:56.4]}
5... Qb6 {[%clk 0:09:59.4]} 6. a3 {[%clk 0:09:56.6]} 6... c4 {[%clk 0:10:00.6]}
7. Nbd2 {[%clk 0:09:56.6]} 7... Bd7 {[%clk 0:09:56.9]} 8. b3 {[%clk 0:09:56.3]}
8... cxb3 {[%clk 0:09:55.7]} 9. Nxb3 {[%clk 0:09:56.8]} 9... Rc8 {[%clk
0:09:10.5]} 10. Bd3 {[%clk 0:09:48.3]} 10... Nh6 {[%clk 0:09:05.1]} 11. O-O
{[%clk 0:09:38.5]} 11... Be7 {[%clk 0:09:05.7]} 12. a4 {[%clk 0:09:28.8]} 12...
Nf5 {[%clk 0:08:24.3]} 13. a5 {[%clk 0:09:16.9]} 13... Qc7 {[%clk 0:08:25.7]}
14. g4 {[%clk 0:09:02.4]} 14... Nh6 {[%clk 0:07:11.8]} 15. h3 {[%clk 0:08:52.7]}
15... Ng8 {[%clk 0:05:53.1]} 16. Bd2 {[%clk 0:07:30.9]} 16... f6 {[%clk
0:05:41.5]} 17. Re1 {[%clk 0:07:25.6]} 17... fxe5 {[%clk 0:05:28.1]} 18. dxe5
{[%clk 0:07:25.9]} 18... Bd8 {[%clk 0:05:20.7]} 19. Qb1 {[%clk 0:06:27.1]} 19...
g6 {[%clk 0:04:48.6]} 20. Nbd4 {[%clk 0:04:06.5]} 20... a6 {[%clk 0:03:47.4]}
21. Bxg6+ {[%clk 0:02:57.2]} 21... hxg6 {[%clk 0:03:45.9]} 22. Qxg6+ {[%clk
0:02:56.5]} 22... Kf8 {[%clk 0:03:44.1]} 23. Nxe6+ {[%clk 0:02:11.8]} 23... Bxe6
{[%clk 0:03:43.9]} 24. Qxe6 {[%clk 0:02:12.7]} 24... Qf7 {[%clk 0:03:42.3]} 25.
Qxf7+ {[%clk 0:02:12.4]} 25... Kxf7 {[%clk 0:03:43.7]} 26. e6+ {[%clk
0:02:13.3]} 26... Kg7 {[%clk 0:03:26.6]} 27. Rab1 {[%clk 0:01:05.9]} 27... Nxa5
{[%clk 0:03:21.2]} 28. Nd4 {[%clk 0:01:06.2]} 28... Rxh3 {[%clk 0:03:08.3]} 29.
Nf5+ {[%clk 0:01:02.4]} 29... Kf8 {[%clk 0:03:09]} 30. c4 {[%clk 0:00:43]} 30...
Rxc4 {[%clk 0:02:09.9]} 31. Bxa5 {[%clk 0:00:39.7]} 31... Rxg4+ {[%clk
0:01:54.2]} 32. Kf1 {[%clk 0:00:36.6]} 32... Bxa5 {[%clk 0:01:55.6]} 33. Red1
{[%clk 0:00:23.4]} 33... Rh1+ {[%clk 0:01:55.1]} 34. Ke2 {[%clk 0:00:22.9]}
34... Re4+ {[%clk 0:01:53.1]} 35. Kd3 {[%clk 0:00:21.6]} 35... Rxd1+ {[%clk
0:01:53]} 36. Rxd1 {[%clk 0:00:22]} 36... Rxe6 {[%clk 0:01:54.5]} 0-1

[Event "GrandPrix_29.05"]
[Site "Chess.com"]
[Date "2020.05.29"]
[Round "5"]
[White "DenisQ"]
[Black "Magicmaster17"]
[Result "0-1"]
[WhiteElo "2125"]
[BlackElo "2405"]
[TimeControl "600+2"]
[EndTime "11:30:01 PDT"]
[Termination "Magicmaster17 won by resignation"]

1. Nf3 {[%clk 0:10:01.9]} 1... Nf6 {[%clk 0:09:43.2]} 2. c4 {[%clk 0:09:59.1]}
2... g6 {[%clk 0:09:44.1]} 3. g3 {[%clk 0:09:57.6]} 3... Bg7 {[%clk 0:09:24.7]}
4. Bg2 {[%clk 0:09:57.5]} 4... c6 {[%clk 0:09:26.1]} 5. O-O {[%clk 0:09:51]}
5... d5 {[%clk 0:09:26.8]} 6. cxd5 {[%clk 0:09:48.5]} 6... cxd5 {[%clk
0:09:25.1]} 7. d4 {[%clk 0:09:49.3]} 7... O-O {[%clk 0:09:15.3]} 8. Ne5 {[%clk
0:09:31]} 8... Ne4 {[%clk 0:09:06.5]} 9. Nc3 {[%clk 0:09:14.9]} 9... Bf5 {[%clk
0:09:06.2]} 10. Qb3 {[%clk 0:08:20.9]} 10... Nc6 {[%clk 0:09:06]} 11. Nxc6
{[%clk 0:08:00.7]} 11... bxc6 {[%clk 0:09:06.4]} 12. Nxe4 {[%clk 0:08:01.5]}
12... Bxe4 {[%clk 0:09:07.4]} 13. Bxe4 {[%clk 0:07:57.6]} 13... dxe4 {[%clk
0:09:08.3]} 14. Be3 {[%clk 0:07:42]} 14... Qd5 {[%clk 0:09:08.8]} 15. Qc2 {[%clk
0:06:43.4]} 15... Rfb8 {[%clk 0:08:19.7]} 16. Rfd1 {[%clk 0:06:33.8]} 16... a5
{[%clk 0:08:14.5]} 17. b3 {[%clk 0:06:08.8]} 17... a4 {[%clk 0:08:03.5]} 18.
bxa4 {[%clk 0:06:04.4]} 18... Rb4 {[%clk 0:07:58.1]} 19. Rab1 {[%clk 0:05:18.8]}
19... Rc4 {[%clk 0:07:31]} 20. Qb3 {[%clk 0:05:16.5]} 20... h5 {[%clk
0:07:31.7]} 21. Rdc1 {[%clk 0:04:40.1]} 21... Rcxa4 {[%clk 0:07:29]} 22. Rc5
{[%clk 0:04:23.3]} 22... Qd7 {[%clk 0:06:45.5]} 23. Qb7 {[%clk 0:03:13.1]} 23...
Qxb7 {[%clk 0:06:21.6]} 24. Rxb7 {[%clk 0:03:15]} 24... Rxa2 {[%clk 0:06:12.8]}
25. Rxc6 {[%clk 0:03:13.9]} 25... Bf6 {[%clk 0:06:10.8]} 26. Kf1 {[%clk
0:02:42.3]} 26... Ra1+ {[%clk 0:05:27.6]} 27. Kg2 {[%clk 0:02:42.4]} 27... Re1
{[%clk 0:05:19.4]} 28. Rc2 {[%clk 0:02:26.4]} 28... Raa1 {[%clk 0:05:14.6]} 29.
Rb8+ {[%clk 0:01:22.1]} 29... Kh7 {[%clk 0:05:15]} 30. Rf8 {[%clk 0:01:01.7]}
30... g5 {[%clk 0:04:59.6]} 31. f3 {[%clk 0:00:51.8]} 31... Kg7 {[%clk
0:04:47.3]} 32. Rfc8 {[%clk 0:00:44.5]} 32... Ra3 {[%clk 0:04:16]} 33. Kf2
{[%clk 0:00:21]} 33... Rh1 {[%clk 0:04:13.2]} 34. Kg2 {[%clk 0:00:22.1]} 34...
Rd1 {[%clk 0:04:13.5]} 35. R8c3 {[%clk 0:00:19.4]} 35... exf3+ {[%clk
0:04:06.3]} 36. Kxf3 {[%clk 0:00:18.1]} 36... Rxc3 {[%clk 0:04:07.1]} 37. Rxc3
{[%clk 0:00:18.8]} 37... Bxd4 {[%clk 0:04:07.4]} 38. Bxd4+ {[%clk 0:00:17.7]}
38... Rxd4 {[%clk 0:04:08.9]} 39. h3 {[%clk 0:00:18]} 39... f5 {[%clk
0:04:03.7]} 40. Rc6 {[%clk 0:00:18.1]} 40... Re4 {[%clk 0:03:58.6]} 41. Rb6
{[%clk 0:00:17.4]} 41... g4+ {[%clk 0:03:59.7]} 42. hxg4 {[%clk 0:00:18.1]}
42... hxg4+ {[%clk 0:04:01.6]} 43. Kf2 {[%clk 0:00:18.7]} 43... e6 {[%clk
0:04:02.6]} 44. Rb7+ {[%clk 0:00:19.5]} 44... Kf6 {[%clk 0:04:03.5]} 45. Rb8
{[%clk 0:00:21.4]} 45... Ra4 {[%clk 0:04:01.1]} 46. Rc8 {[%clk 0:00:21.7]} 46...
Ke5 {[%clk 0:04:01.9]} 47. Rb8 {[%clk 0:00:22.3]} 47... Ke4 {[%clk 0:04:02.2]}
48. Re8 {[%clk 0:00:22.6]} 48... Ra6 {[%clk 0:03:58.7]} 49. Rb8 {[%clk 0:00:23]}
49... Rd6 {[%clk 0:03:52.9]} 50. Rb4+ {[%clk 0:00:23.2]} 50... Rd4 {[%clk
0:03:53.7]} 51. Rb6 {[%clk 0:00:21.3]} 51... e5 {[%clk 0:03:54.9]} 52. Rb5
{[%clk 0:00:19.9]} 52... f4 {[%clk 0:03:52.8]} 53. Rb3 {[%clk 0:00:20.2]} 53...
Rc4 {[%clk 0:03:40.4]} 54. Ra3 {[%clk 0:00:18.7]} 54... Rb4 {[%clk 0:03:39.9]}
55. Rc3 {[%clk 0:00:19.6]} 55... Rd4 {[%clk 0:03:31.6]} 56. Ra3 {[%clk
0:00:19.2]} 56... Rd2 {[%clk 0:03:32.1]} 57. Ra4+ {[%clk 0:00:19.5]} 57... Kf5
{[%clk 0:03:33]} 58. Ra3 {[%clk 0:00:19.3]} 58... f3 {[%clk 0:03:32.5]} 0-1

[Event "GrandPrix_29.05"]
[Site "Chess.com"]
[Date "2020.05.29"]
[Round "5"]
[White "BakaPG"]
[Black "Olga_Girya"]
[Result "1-0"]
[WhiteElo "2251"]
[BlackElo "2250"]
[TimeControl "600+2"]
[EndTime "11:30:01 PDT"]
[Termination "BakaPG won on time"]

1. e4 {[%clk 0:10:01.9]} 1... c6 {[%clk 0:10:00.3]} 2. d4 {[%clk 0:10:00.8]}
2... d5 {[%clk 0:10:01.3]} 3. Nd2 {[%clk 0:10:00.2]} 3... dxe4 {[%clk
0:10:01.3]} 4. Nxe4 {[%clk 0:10:01]} 4... Nf6 {[%clk 0:10:02.5]} 5. Nxf6+ {[%clk
0:10:01.8]} 5... exf6 {[%clk 0:10:04.1]} 6. c3 {[%clk 0:10:02.9]} 6... Bd6
{[%clk 0:10:05.1]} 7. Bd3 {[%clk 0:10:03.6]} 7... O-O {[%clk 0:10:06.3]} 8. Qc2
{[%clk 0:10:03.7]} 8... Re8+ {[%clk 0:10:07.8]} 9. Ne2 {[%clk 0:10:05]} 9... h5
{[%clk 0:10:09.4]} 10. Bd2 {[%clk 0:09:59.1]} 10... Nd7 {[%clk 0:09:25.5]} 11.
O-O-O {[%clk 0:09:56.5]} 11... Nf8 {[%clk 0:09:15.7]} 12. Kb1 {[%clk 0:09:50.3]}
12... Be6 {[%clk 0:09:01.7]} 13. Nf4 {[%clk 0:09:27.5]} 13... Bxf4 {[%clk
0:08:57.5]} 14. Bxf4 {[%clk 0:09:28.1]} 14... b5 {[%clk 0:08:31.7]} 15. Rhe1
{[%clk 0:09:11.8]} 15... Bd5 {[%clk 0:07:46.5]} 16. f3 {[%clk 0:09:05.3]} 16...
a5 {[%clk 0:07:24.6]} 17. Be4 {[%clk 0:08:58.5]} 17... a4 {[%clk 0:07:17.1]} 18.
Bxd5 {[%clk 0:08:14.7]} 18... Qxd5 {[%clk 0:07:13.7]} 19. Re4 {[%clk 0:08:14.4]}
19... Ng6 {[%clk 0:05:32.3]} 20. Bg3 {[%clk 0:07:59.3]} 20... f5 {[%clk
0:05:27.2]} 21. Ree1 {[%clk 0:07:51.3]} 21... h4 {[%clk 0:05:06.2]} 22. Be5
{[%clk 0:07:50]} 22... f6 {[%clk 0:04:18.1]} 23. Bc7 {[%clk 0:07:01.2]} 23...
Rac8 {[%clk 0:03:21.2]} 24. Bb6 {[%clk 0:06:49.5]} 24... Re6 {[%clk 0:03:21.8]}
25. Rxe6 {[%clk 0:06:21.1]} 25... Qxe6 {[%clk 0:03:22.1]} 26. g4 {[%clk
0:06:22]} 26... hxg3 {[%clk 0:03:20.3]} 27. hxg3 {[%clk 0:06:20.8]} 27... Ne7
{[%clk 0:03:12.2]} 28. c4 {[%clk 0:05:49.9]} 28... Qxc4 {[%clk 0:02:43.9]} 29.
Qxc4+ {[%clk 0:05:45.4]} 29... bxc4 {[%clk 0:02:45.8]} 30. Rc1 {[%clk 0:05:39]}
30... Nd5 {[%clk 0:02:47.3]} 31. Ba5 {[%clk 0:05:40]} 31... Ra8 {[%clk 0:01:24]}
32. Bd2 {[%clk 0:05:36.9]} 32... a3 {[%clk 0:01:08.7]} 33. Rxc4 {[%clk
0:05:34.9]} 33... axb2 {[%clk 0:01:09.5]} 34. Kxb2 {[%clk 0:05:35.1]} 34... Ra6
{[%clk 0:01:10.1]} 35. Kb3 {[%clk 0:05:32]} 35... Kf7 {[%clk 0:01:11.4]} 36. a4
{[%clk 0:05:31]} 36... Rb6+ {[%clk 0:01:01.6]} 37. Kc2 {[%clk 0:05:26.7]} 37...
Ke6 {[%clk 0:00:55.8]} 38. a5 {[%clk 0:05:26.5]} 38... Ra6 {[%clk 0:00:56.9]}
39. Kd3 {[%clk 0:05:23.5]} 39... Nc7 {[%clk 0:00:53.9]} 40. g4 {[%clk
0:05:12.7]} 40... fxg4 {[%clk 0:00:53.5]} 41. fxg4 {[%clk 0:05:13.4]} 41... Kd7
{[%clk 0:00:39.6]} 42. Rc1 {[%clk 0:04:53]} 42... Ra8 {[%clk 0:00:39.9]} 43. Rb1
{[%clk 0:04:48]} 43... Nb5 {[%clk 0:00:34]} 44. d5 {[%clk 0:04:43.4]} 44... Rh8
{[%clk 0:00:33]} 45. dxc6+ {[%clk 0:04:34.4]} 45... Kxc6 {[%clk 0:00:33.6]} 46.
Rc1+ {[%clk 0:04:24.9]} 46... Kd5 {[%clk 0:00:34.6]} 47. Be3 {[%clk 0:04:23.2]}
47... Rd8 {[%clk 0:00:08.5]} 48. a6 {[%clk 0:04:13.2]} 48... Ke5+ {[%clk
0:00:04.6]} 49. Ke2 {[%clk 0:04:11.2]} 49... Ke6 {[%clk 0:00:02.4]} 50. Rc6+
{[%clk 0:03:46.6]} 50... Rd6 {[%clk 0:00:03.4]} 51. a7 {[%clk 0:03:39.3]} 51...
Nxa7 {[%clk 0:00:03.7]} 52. Rxd6+ {[%clk 0:03:39.8]} 52... Kxd6 {[%clk
0:00:05.6]} 53. Bxa7 {[%clk 0:03:40.6]} 53... Ke5 {[%clk 0:00:04.4]} 54. Kf3
{[%clk 0:03:41.4]} 54... g5 {[%clk 0:00:02.9]} 55. Bb8+ {[%clk 0:03:36.3]} 55...
Kd5 {[%clk 0:00:04.1]} 56. Ke3 {[%clk 0:03:36.7]} 1-0

[Event "GrandPrix_29.05"]
[Site "Chess.com"]
[Date "2020.05.29"]
[Round "5"]
[White "MAS_1704"]
[Black "Armen_Barseghyan"]
[Result "0-1"]
[WhiteElo "2155"]
[BlackElo "2415"]
[TimeControl "600+2"]
[EndTime "11:30:02 PDT"]
[Termination "Armen_Barseghyan won on time"]

1. d4 {[%clk 0:09:58.2]} 1... Nf6 {[%clk 0:10:00]} 2. Nf3 {[%clk 0:09:57.2]}
2... g6 {[%clk 0:09:59.9]} 3. Bf4 {[%clk 0:09:49]} 3... Bg7 {[%clk 0:10:00]} 4.
e3 {[%clk 0:09:49.4]} 4... d6 {[%clk 0:10:00.3]} 5. Be2 {[%clk 0:09:47.8]} 5...
Nh5 {[%clk 0:10:00.3]} 6. Bg5 {[%clk 0:09:42.1]} 6... h6 {[%clk 0:10:01]} 7. Bh4
{[%clk 0:09:42.6]} 7... g5 {[%clk 0:10:01.6]} 8. Bg3 {[%clk 0:09:43.3]} 8...
Nxg3 {[%clk 0:09:55.8]} 9. hxg3 {[%clk 0:09:43.7]} 9... e6 {[%clk 0:09:53.7]}
10. Nc3 {[%clk 0:09:23.1]} 10... d5 {[%clk 0:09:39.1]} 11. Qd2 {[%clk
0:09:16.9]} 11... b6 {[%clk 0:09:38.1]} 12. O-O-O {[%clk 0:09:16.4]} 12... Bb7
{[%clk 0:09:38.6]} 13. Ne5 {[%clk 0:09:14.6]} 13... Nd7 {[%clk 0:08:58.7]} 14.
f4 {[%clk 0:09:04.1]} 14... Nxe5 {[%clk 0:08:58.5]} 15. dxe5 {[%clk 0:07:50.7]}
15... Qe7 {[%clk 0:08:58.3]} 16. Qd4 {[%clk 0:07:45.6]} 16... O-O-O {[%clk
0:08:49.2]} 17. Qa4 {[%clk 0:07:43]} 17... a5 {[%clk 0:08:33.8]} 18. Nb5 {[%clk
0:06:20.9]} 18... Kb8 {[%clk 0:07:08]} 19. Nd4 {[%clk 0:06:10.5]} 19... Qc5
{[%clk 0:06:52.6]} 20. Bb5 {[%clk 0:05:14.1]} 20... Qb4 {[%clk 0:06:17.7]} 21.
Qxb4 {[%clk 0:05:04.8]} 21... axb4 {[%clk 0:06:19.6]} 22. Nc6+ {[%clk
0:05:05.4]} 22... Bxc6 {[%clk 0:06:20.2]} 23. Bxc6 {[%clk 0:05:05.3]} 23... f6
{[%clk 0:06:15.5]} 24. Rd4 {[%clk 0:05:03]} 24... fxe5 {[%clk 0:06:14.2]} 25.
Rxb4 {[%clk 0:04:45.9]} 25... Rd6 {[%clk 0:06:14.1]} 26. Bb5 {[%clk 0:04:44.8]}
26... gxf4 {[%clk 0:05:42.7]} 27. gxf4 {[%clk 0:04:43.9]} 27... e4 {[%clk
0:05:28.3]} 28. Rd1 {[%clk 0:03:01.5]} 28... e5 {[%clk 0:05:11.2]} 29. fxe5
{[%clk 0:02:20.7]} 29... Bxe5 {[%clk 0:05:11.2]} 30. Bf1 {[%clk 0:01:30.6]}
30... Rf8 {[%clk 0:04:47.4]} 31. a4 {[%clk 0:01:11.4]} 31... Bf6 {[%clk
0:03:52.1]} 32. c4 {[%clk 0:00:54.1]} 32... c5 {[%clk 0:03:35.7]} 33. Rb5 {[%clk
0:00:48.1]} 33... d4 {[%clk 0:03:35.9]} 34. exd4 {[%clk 0:00:48.8]} 34... Bxd4
{[%clk 0:03:29.3]} 35. Re1 {[%clk 0:00:23.4]} 35... Rf2 {[%clk 0:03:05.7]} 36.
a5 {[%clk 0:00:13.7]} 36... Ka7 {[%clk 0:02:45.6]} 37. axb6+ {[%clk 0:00:11.1]}
37... Rxb6 {[%clk 0:02:44.9]} 38. Rxb6 {[%clk 0:00:09.2]} 38... Kxb6 {[%clk
0:02:46.8]} 39. b3 {[%clk 0:00:09.3]} 39... Ka5 {[%clk 0:02:47.1]} 40. g4 {[%clk
0:00:07.7]} 40... Kb4 {[%clk 0:02:46.3]} 41. Be2 {[%clk 0:00:05]} 41... Bc3
{[%clk 0:02:42.8]} 0-1